bitfinex-derivatives/quotes_BTCF0:USTF0_20250208
["timestamp","ask_amount","ask_price","bid_price","bid_amount"]
[1739031244961,0.09454622,96017.0,96016.0,0.6276083]
[1739031249989,0.09454622,96017.0,96016.0,0.6357083]
[1739031249990,0.08054622,96017.0,96016.0,0.6357083]
[1739031250161,0.59103713,96030.0,96029.0,0.2082809]
[1739031250359,0.59103713,96030.0,96029.0,0.6410009]
[1739031251674,0.59503713,96030.0,96029.0,0.6410009]
[1739031251971,0.004,96030.0,96029.0,0.6410009]
[1739031252777,0.007,96030.0,96029.0,0.6410009]
[1739031254878,0.007,96030.0,96029.0,0.65291528]
[1739031265979,0.007,96030.0,96029.0,0.58124845]
[1739031267388,0.007,96030.0,96029.0,0.50932845]
[1739031267585,0.007,96030.0,96029.0,0.58120845]
[1739031280001,0.08352568,96030.0,96029.0,0.58120845]
[1739031280497,0.08352568,96030.0,96029.0,0.44459438]
[1739031281196,0.08352568,96030.0,96029.0,0.65287528]
[1739031282595,0.29180448,96030.0,96029.0,0.65287528]
[1739031284995,0.29180448,96030.0,96029.0,0.58099528]
[1739031285195,0.29180448,96030.0,96029.0,0.44459438]
[1739031286203,0.29180448,96030.0,96029.0,0.65287528]
[1739031288603,0.29180448,96030.0,96029.0,0.5812048]
[1739031289304,0.29180448,96030.0,96029.0,0.59336399]
[1739031290095,0.29180448,96030.0,96029.0,0.29232009]
[1739031295206,0.28980448,96030.0,96029.0,0.29232009]
[1739031296408,0.28780448,96030.0,96029.0,0.29232009]
[1739031296604,0.28780448,96030.0,96029.0,0.22065068]
[1739031297511,0.28680448,96030.0,96029.0,0.22065068]
[1739031301210,0.28680448,96030.0,96029.0,0.2082809]
[1739031301409,0.07852568,96030.0,96022.0,0.01226855]
[1739031301606,0.07852568,96030.0,96021.0,0.0091]
[1739031301607,0.2082961,96022.0,96021.0,0.0091]
[1739031301808,0.3608,96027.0,96015.0,0.00015626]
[1739031302109,0.06564165,96025.0,96017.0,0.2083055]
[1739031302302,0.208303,96019.0,96017.0,0.2083055]
[1739031303306,0.0553,96018.0,96017.0,0.2083055]
[1739031303605,0.208307,96017.0,96015.0,0.01228066]
[1739031304201,0.07652568,96024.0,96022.0,0.2082939]
[1739031304400,0.01567722,96024.0,96023.0,0.1752]
[1739031306005,0.01567722,96024.0,96023.0,0.1782]
[1739031306405,0.2082777,96031.0,96024.0,0.2082918]
[1739031306611,0.2082777,96031.0,96028.0,0.2082816]
[1739031306804,0.2082777,96031.0,96029.0,0.2082795]
[1739031307605,0.05953061,96040.0,96034.0,0.2082701]
[1739031307908,0.2082337,96051.0,96034.0,0.2801101]
[1739031308304,0.2082382,96049.0,96034.0,0.2801101]
[1739031309010,0.00215626,96035.0,96034.0,0.2801101]
[1739031309312,0.00215626,96035.0,96034.0,0.4980101]
[1739031309810,0.00615626,96035.0,96034.0,0.4980101]
[1739031310212,0.29068569,96041.0,96034.0,0.30144441]
[1739031310406,0.29068569,96041.0,96040.0,0.5690571]
[1739031311407,0.29668569,96041.0,96040.0,0.5690571]
[1739031311707,0.30168569,96041.0,96040.0,0.5690571]
[1739031312410,0.30168569,96041.0,96040.0,0.6408571]
[1739031312610,0.30168569,96041.0,96040.0,0.6418571]
[1739031313006,0.30068569,96041.0,96040.0,0.6418571]
[1739031314310,0.01,96041.0,96040.0,0.6418571]
[1739031315111,0.01,96041.0,96040.0,0.5700571]
[1739031315313,0.01,96041.0,96040.0,0.6418571]
[1739031318014,0.01,96041.0,96034.0,0.22960441]
[1739031318223,0.2082664,96036.0,96035.0,0.0718]
[1739031319424,0.2082698,96035.0,96032.0,0.21990533]
[1739031319724,0.2082852,96028.0,96023.0,0.0718]
[1739031320123,0.0578,96027.0,96023.0,0.0718]
[1739031320717,0.0578,96027.0,96016.0,0.36136]
[1739031321017,0.2083057,96018.0,96016.0,0.3608]
[1739031321313,0.2083057,96018.0,96016.0,0.37262801]
[1739031321619,0.2083057,96018.0,96016.0,0.3608]
[1739031322118,0.2083057,96018.0,96016.0,0.3628]
[1739031322810,0.2093057,96018.0,96016.0,0.3668]
[1739031323418,0.2093057,96018.0,96016.0,0.3698]
[1739031323613,0.2093057,96018.0,96016.0,0.009]
[1739031323816,0.2083221,96010.0,95991.0,0.2179]
[1739031324015,0.001,96018.0,95987.0,0.0718]
[1739031324016,0.2083561,95995.0,95987.0,0.0718]
[1739031324215,0.0581,95994.0,95987.0,0.0718]
[1739031324620,0.0581,95994.0,95990.0,0.2083644]
[1739031325030,0.0581,95994.0,95991.0,0.009]
[1739031325323,0.0581,95994.0,95991.0,0.2173615]
[1739031325821,0.0581,95994.0,95991.0,0.2083615]
[1739031326121,0.0581,95994.0,95991.0,0.2173615]
[1739031326827,0.0581,95994.0,95991.0,0.2103615]
[1739031327221,0.0581,95994.0,95991.0,0.2083615]
[1739031327423,0.0581,95994.0,95991.0,0.2103615]
[1739031328025,0.0591,95994.0,95991.0,0.2103615]
[1739031329519,0.0591,95994.0,95991.0,0.2083615]
[1739031330320,0.0591,95994.0,95993.0,0.208359]
[1739031330624,0.0581,95994.0,95993.0,0.208359]
[1739031330922,0.0591,95994.0,95993.0,0.208359]
[1739031331528,0.208359,95993.0,95991.0,0.001]
[1739031332429,0.2664569,95994.0,95993.0,0.002]
[1739031333321,0.2664569,95994.0,95993.0,0.0012419]
[1739031333622,0.2684569,95994.0,95993.0,0.0012419]
[1739031334228,0.208359,95993.0,95991.0,0.002]
[1739031335521,0.20837,95988.0,95982.0,0.22038777]
[1739031335917,0.20837,95988.0,95984.0,0.2083775]
[1739031338327,0.20837,95988.0,95984.0,0.2103775]
[1739031338527,0.20837,95988.0,95984.0,0.2113775]
[1739031338939,0.2083754,95986.0,95984.0,0.001]
[1739031339136,0.2083754,95986.0,95984.0,0.002]
[1739031339435,0.2083754,95986.0,95984.0,0.003]
[1739031339929,0.2083754,95986.0,95984.0,0.001]
[1739031340146,0.2083754,95986.0,95984.0,0.003]
[1739031340841,0.2093754,95986.0,95984.0,0.004]
[1739031342152,0.2093754,95986.0,95984.0,0.00212809]
[1739031349559,0.2093754,95986.0,95982.0,0.00015626]
[1739031349765,0.2083894,95979.0,95977.0,0.77112]
[1739031349957,0.2083894,95979.0,95977.0,0.77052]
[1739031350264,0.2083894,95979.0,95977.0,0.6988109]
[1739031351753,0.2093894,95979.0,95977.0,0.7008109]
[1739031352959,0.2093894,95979.0,95977.0,0.7058109]
[1739031354167,0.3608,95978.0,95977.0,0.7058109]
[1739031355258,0.3618,95978.0,95977.0,0.7038109]
[1739031355764,0.001,95978.0,95977.0,0.6988109]
[1739031355957,0.3618,95978.0,95977.0,0.7038109]
[1739031356569,0.2084046,95972.0,95971.0,0.00156276]
[1739031357159,0.0594,95977.0,95968.0,0.01209632]
[1739031357359,0.56921,95970.0,95968.0,0.01209632]
[1739031358561,0.57121,95970.0,95968.0,0.01709632]
[1739031358957,0.57121,95970.0,95968.0,0.00515626]
[1739031359160,0.2084285,95961.0,95960.0,1e-08]
[1739031359473,0.5692285,95961.0,95960.0,1e-08]
[1739031361368,0.3608,95961.0,95936.0,0.3608]
[1739031361558,0.3608,95961.0,95931.0,0.0614]
[1739031361559,0.46081139,95946.0,95931.0,0.0614]
[1739031361761,0.2084824,95937.0,95931.0,0.0614]
[1739031362771,0.2084824,95937.0,95934.0,0.01199225]
[1739031363473,0.2084824,95937.0,95931.0,0.0614]
[1739031363771,0.2084824,95937.0,95933.0,0.0118107]
[1739031363978,0.2094824,95937.0,95933.0,0.0118107]
[1739031364272,0.2094824,95937.0,95931.0,0.0614]
[1739031364273,0.5702824,95937.0,95931.0,0.0614]
[1739031364472,0.5702824,95937.0,95935.0,0.00083702]
[1739031364669,0.3618,95937.0,95925.0,0.771]
[1739031364858,0.2085044,95927.0,95925.0,0.771]
[1739031365568,0.06,95926.0,95925.0,0.771]
[1739031365771,0.0554,95936.0,95925.0,0.771]
[1739031365772,0.2084867,95935.0,95925.0,0.771]
[1739031366073,0.3618,95937.0,95927.0,0.2085014]
[1739031366269,0.2084897,95933.0,95927.0,0.2085014]
[1739031366663,0.3618,95937.0,95925.0,0.77156]
[1739031366863,0.2085045,95927.0,95925.0,0.771]
[1739031367667,0.001,95926.0,95925.0,0.771]
[1739031368173,0.2085045,95927.0,95925.0,0.771]
[1739031368368,0.2095045,95927.0,95925.0,0.771]
[1739031368569,0.2105045,95927.0,95925.0,0.771]
[1739031368765,0.2095045,95927.0,95925.0,0.771]
[1739031369074,0.007,95926.0,95925.0,0.771]
[1739031369272,0.2155054,95926.0,95920.0,0.2085167]
[1739031369572,0.2085054,95926.0,95920.0,0.2085167]
[1739031371069,0.2145054,95926.0,95920.0,0.2085167]
[1739031371264,0.2215054,95926.0,95920.0,0.2085167]
[1739031371767,0.013,95926.0,95920.0,0.2085167]
[1739031372068,0.2085097,95924.0,95920.0,0.2085167]
[1739031372273,0.2085144,95922.0,95920.0,0.2085167]
[1739031374167,0.20845865,95922.0,95920.0,0.2085167]
[1739031374370,0.011,95924.0,95917.0,0.056]
[1739031374569,0.011,95924.0,95922.0,0.2085125]
[1739031374770,0.006,95924.0,95922.0,0.2085125]
[1739031375069,0.2085076,95925.0,95922.0,0.2085125]
[1739031375275,0.2085096,95924.0,95922.0,0.2085125]
[1739031376175,0.2084945,95931.0,95927.0,0.2085015]
[1739031376377,0.2084945,95931.0,95928.0,0.2084985]
[1739031376586,0.2084945,95931.0,95929.0,0.0564]
[1739031377572,0.2084783,95939.0,95930.0,0.208494]
[1739031377881,0.2084783,95939.0,95931.0,0.2084924]
[1739031378277,0.2084783,95939.0,95933.0,0.208489]
[1739031378780,0.005,95939.0,95933.0,0.208489]
[1739031379080,0.005,95939.0,95937.0,0.2084803]
[1739031379280,0.005,95939.0,95938.0,0.0561]
[1739031379470,0.011,95939.0,95938.0,0.0561]
[1739031380273,8.002e-05,95945.0,95938.0,0.0561]
[1739031380274,1e-08,95945.0,95944.0,0.2084654]
[1739031381577,1e-08,95945.0,95938.0,0.4169]
[1739031381780,0.00300001,95945.0,95938.0,0.4169]
[1739031382183,1e-08,95945.0,95938.0,0.4169]
[1739031382368,0.00200001,95945.0,95938.0,0.4169]
[1739031382775,0.00100001,95945.0,95938.0,0.4169]
[1739031383586,0.00100001,95945.0,95938.0,0.4199]
[1739031384082,0.00100001,95945.0,95938.0,0.0591]
[1739031384385,0.00200001,95945.0,95938.0,0.1279]
[1739031384576,0.00100001,95945.0,95938.0,0.0561]
[1739031384881,0.2084741,95940.0,95938.0,0.0561]
[1739031387183,0.2124741,95940.0,95938.0,0.0561]
[1739031388089,0.2084771,95939.0,95934.0,0.0718]
[1739031388289,0.2084771,95939.0,95938.0,0.001]
[1739031388590,0.2084771,95939.0,95938.0,0.00065384]
[1739031388797,0.2084771,95939.0,95934.0,0.0718]
[1739031390480,0.2124771,95939.0,95934.0,0.0718]
[1739031390892,0.2144771,95939.0,95934.0,0.0718]
[1739031391092,0.2114771,95939.0,95934.0,0.0718]
[1739031392382,0.2114771,95939.0,95936.0,0.2084821]
[1739031393286,0.2084771,95939.0,95936.0,0.2084821]
[1739031393487,0.2094771,95939.0,95936.0,0.2084821]
[1739031394297,0.2104771,95939.0,95936.0,0.2084821]
[1739031394896,0.2094771,95939.0,95936.0,0.2094821]
[1739031395796,0.2094771,95939.0,95936.0,0.2114821]
[1739031396594,0.2084771,95939.0,95936.0,0.2114821]
[1739031396785,0.2094771,95939.0,95936.0,0.2114821]
[1739031397193,0.2084771,95939.0,95936.0,0.2114821]
[1739031397394,0.2124771,95939.0,95936.0,0.2114821]
[1739031397796,0.2084771,95939.0,95936.0,0.2114821]
[1739031397997,0.2094771,95939.0,95936.0,0.2114821]
[1739031398397,0.2094771,95939.0,95936.0,0.2104821]
[1739031398602,0.2114771,95939.0,95936.0,0.2104821]
[1739031399190,0.2114771,95939.0,95936.0,0.2094821]
[1739031399501,0.2114771,95939.0,95938.0,0.2084784]
[1739031399903,0.003,95939.0,95938.0,0.2084784]
[1739031400204,0.001,95939.0,95938.0,0.2084784]
[1739031400403,0.005,95939.0,95938.0,0.2084784]
[1739031400795,0.001,95939.0,95938.0,0.2084784]
[1739031400996,0.004,95939.0,95938.0,0.2084784]
[1739031401496,0.002,95939.0,95938.0,0.2084784]
[1739031401689,0.001,95939.0,95938.0,0.2084784]
[1739031401895,0.002,95939.0,95938.0,0.2084784]
[1739031402605,0.001,95939.0,95938.0,0.2104784]
[1739031405706,1e-08,95945.0,95944.0,0.2084654]
[1739031407097,0.00400001,95945.0,95944.0,0.2084654]
[1739031409405,0.00400001,95945.0,95944.0,0.22018871]
[1739031412204,0.00400001,95945.0,95944.0,0.14845786]
[1739031415897,0.2084687,95943.0,95938.0,0.2084779]
[1739031416109,0.2084687,95943.0,95939.0,0.07176]
[1739031416809,0.2084687,95943.0,95939.0,0.2802358]
[1739031417209,0.2104687,95943.0,95939.0,0.2802358]
[1739031417607,0.2084687,95943.0,95939.0,0.2802358]
[1739031417914,0.2104687,95943.0,95939.0,0.2802358]
[1739031419214,0.07660041,95942.0,95939.0,0.2802358]
[1739031419707,0.07660041,95942.0,95940.0,0.2084732]
[1739031420212,0.07660041,95942.0,95940.0,0.13673747]
[1739031420616,0.07960041,95942.0,95940.0,0.13673747]
[1739031421004,0.07660041,95942.0,95940.0,0.13673747]
[1739031421215,0.07960041,95942.0,95940.0,0.13673747]
[1739031421912,0.08060041,95942.0,95940.0,0.13673747]
[1739031422520,0.004,95942.0,95940.0,0.13673747]
[1739031426016,0.2084719,95941.0,95940.0,0.13673747]
[1739031426417,0.004,95942.0,95940.0,0.13673747]
[1739031427012,0.001,95942.0,95940.0,0.13673747]
[1739031427314,0.002,95941.0,95940.0,0.13673747]
[1739031427817,0.001,95942.0,95940.0,0.13673747]
[1739031427818,0.003,95942.0,95940.0,0.13673747]
[1739031428415,0.002,95942.0,95940.0,0.13673747]
[1739031428613,0.002,95942.0,95941.0,0.0585]
[1739031428812,0.002,95942.0,95941.0,0.2764]
[1739031429211,1e-08,95945.0,95941.0,0.2764]
[1739031429411,1e-08,95945.0,95944.0,0.5692653]
[1739031431120,0.00300001,95945.0,95944.0,0.5692653]
[1739031431921,0.00400001,95945.0,95944.0,0.5692653]
[1739031433013,0.00400001,95945.0,95944.0,0.2084653]
[1739031433707,0.00400001,95945.0,95944.0,0.2802253]
[1739031435625,0.00400001,95945.0,95941.0,0.2179]
[1739031435818,0.06290001,95945.0,95941.0,0.2179]
[1739031436227,0.3608,95943.0,95941.0,0.2179]
[1739031437316,0.062,95942.0,95941.0,0.2179]
[1739031437824,0.062,95942.0,95941.0,0.13564494]
[1739031438024,0.2084718,95941.0,95937.0,0.01167033]
[1739031438211,0.2084718,95941.0,95931.0,0.2802524]
[1739031439324,0.2084792,95938.0,95931.0,0.2802524]
[1739031439522,0.2084988,95929.0,95923.0,0.9803895]
[1739031439826,0.3608,95925.0,95923.0,0.9797495]
[1739031441220,0.3608,95925.0,95923.0,0.90800246]
[1739031441523,0.3608,95925.0,95923.0,0.70049296]
[1739031441730,0.5693085,95925.0,95923.0,0.70049296]
[1739031442118,0.0605,95924.0,95923.0,0.70049296]
[1739031443223,0.1218,95924.0,95923.0,0.70049296]
[1739031443527,0.1218,95924.0,95923.0,0.69949296]
[1739031443917,0.1318,95924.0,95923.0,0.69949296]
[1739031444230,0.1318,95924.0,95907.0,0.07332388]
[1739031444231,0.2085282,95916.0,95907.0,0.00156388]
[1739031444421,0.208558,95902.0,95900.0,0.1]
[1739031446531,0.209558,95902.0,95900.0,0.103]
[1739031446727,0.209558,95902.0,95900.0,0.104]
[1739031447828,0.0603,95901.0,95900.0,0.104]
[1739031450034,0.0613,95901.0,95900.0,0.104]
[1739031450728,0.1223,95901.0,95900.0,0.104]
[1739031451425,0.2085622,95900.0,95885.0,0.208592]
[1739031451635,0.2085834,95890.0,95885.0,0.22000954]
[1739031451837,0.0594,95889.0,95885.0,0.22000954]
[1739031452630,0.0594,95889.0,95885.0,0.22300954]
[1739031453334,0.2085901,95887.0,95885.0,0.01141754]
[1739031453536,0.2085901,95887.0,95885.0,0.003]
[1739031453839,0.2085901,95887.0,95885.0,0.004]
[1739031454738,0.3618,95887.0,95875.0,0.13564494]
[1739031455042,0.3608,95879.0,95875.0,0.14671766]
[1739031455238,0.3608,95879.0,95875.0,0.01107272]
[1739031455531,0.3608,95879.0,95869.0,0.9804679]
[1739031456121,0.3608,95879.0,95869.0,0.77184]
[1739031456344,0.2086125,95877.0,95870.0,0.2086247]
[1739031457028,0.2086125,95877.0,95869.0,0.77184]
[1739031457228,0.002,95879.0,95872.0,0.2086206]
[1739031457629,0.001,95879.0,95872.0,0.2086206]
[1739031457829,0.002,95879.0,95869.0,0.87185139]
[1739031458031,0.002,95879.0,95876.0,0.2086118]
[1739031458232,0.001,95879.0,95876.0,0.2086118]
[1739031458541,0.001,95877.0,95876.0,0.2086118]
[1739031459542,0.208614,95876.0,95871.0,0.00156433]
[1739031460230,0.001,95877.0,95872.0,0.2086218]
[1739031460539,0.001,95877.0,95871.0,0.00156433]
[1739031460729,0.001,95876.0,95872.0,0.2086218]
[1739031460931,0.001,95876.0,95875.0,0.2086153]
[1739031462135,0.002,95876.0,95875.0,0.2086153]
[1739031462335,0.001,95876.0,95875.0,0.2086153]
[1739031463241,0.002,95876.0,95875.0,0.2086153]
[1739031464037,0.003,95876.0,95871.0,0.00156433]
[1739031464240,0.003,95876.0,95875.0,0.2086153]
[1739031464441,0.001,95876.0,95875.0,0.2086153]
[1739031464643,0.004,95876.0,95875.0,0.2086153]
[1739031465030,0.001,95876.0,95875.0,0.2086153]
[1739031465235,0.002,95876.0,95875.0,0.2086153]
[1739031465435,0.001,95876.0,95875.0,0.2086153]
[1739031465636,0.2085962,95884.0,95878.0,0.2086084]
[1739031466647,0.2086002,95882.0,95878.0,0.13682868]
[1739031467852,0.2136002,95882.0,95878.0,0.13682868]
[1739031468245,0.2136002,95882.0,95879.0,0.2086062]
[1739031469647,0.2086038,95881.0,95879.0,0.2086062]
[1739031469945,0.39469375,95881.0,95879.0,0.2086062]
[1739031470336,0.2086059,95880.0,95873.0,0.5694192]
[1739031470537,0.2086059,95880.0,95874.0,0.208616]
[1739031470732,0.2086114,95877.0,95874.0,0.208616]
[1739031471739,0.2086153,95875.0,95872.0,0.2086216]
[1739031473843,0.2086196,95873.0,95871.0,0.00156433]
[1739031474345,0.0584,95872.0,95871.0,0.00156433]
[1739031474540,0.2670237,95872.0,95869.0,0.7016177]
[1739031474746,0.2086262,95870.0,95869.0,0.7010577]
[1739031477849,0.2096262,95870.0,95869.0,0.7010577]
[1739031478346,0.2086262,95870.0,95869.0,0.7010577]
[1739031478650,0.2096262,95870.0,95869.0,0.7010577]
[1739031481150,0.2096262,95870.0,95869.0,0.61621707]
[1739031481949,0.001,95870.0,95848.0,0.00156481]
[1739031482153,0.3608,95864.0,95855.0,0.01111567]
[1739031482343,0.2086502,95859.0,95855.0,4e-05]
[1739031482655,0.2086502,95859.0,95853.0,0.2086626]
[1739031483153,0.2086544,95858.0,95853.0,0.2086626]
[1739031483742,0.2086544,95858.0,95853.0,0.21997236]
[1739031483938,0.208643,95863.0,95853.0,0.01130976]
[1739031484142,0.2086445,95862.0,95857.0,0.2086544]
[1739031484344,0.2086472,95861.0,95857.0,0.2086544]
[1739031485146,0.001,95859.0,95857.0,0.2086544]
[1739031485557,0.208653,95858.0,95853.0,0.2086622]
[1739031485748,0.06046604,95857.0,95853.0,0.2086622]
[1739031486258,0.0613,95856.0,95854.0,0.2086605]
[1739031488056,0.2699578,95856.0,95854.0,0.2086605]
[1739031488356,0.0613,95856.0,95849.0,0.37216648]
[1739031488545,0.0633,95856.0,95849.0,0.37216648]
[1739031488743,0.2086688,95851.0,95849.0,0.37216648]
[1739031489349,0.2086688,95851.0,95849.0,0.58083688]
[1739031489659,0.11906604,95855.0,95851.0,0.2086673]
[1739031489852,0.32772594,95855.0,95851.0,0.2086673]
[1739031490458,0.06046604,95855.0,95853.0,0.2086627]
[1739031490851,0.06046604,95855.0,95854.0,0.0604]
[1739031491758,0.001,95855.0,95854.0,0.269061]
[1739031492159,0.21757144,95858.0,95854.0,0.269061]
[1739031492364,0.21757144,95858.0,95857.0,0.2086544]
[1739031492663,0.21757144,95858.0,95857.0,0.2804544]
[1739031493563,0.21857144,95858.0,95857.0,0.2804544]
[1739031495265,0.001,95858.0,95857.0,0.2804544]
[1739031503361,0.21757144,95868.0,95867.0,0.2086327]
[1739031503564,0.21757144,95868.0,95867.0,0.5694327]
[1739031504371,0.21757144,95868.0,95867.0,0.2086327]
[1739031504765,0.21757144,95868.0,95867.0,0.2803927]
[1739031506267,0.00015643,95869.0,95867.0,0.2803927]
[1739031506867,0.00015643,95869.0,95867.0,0.07176]
[1739031507069,0.20878503,95869.0,95867.0,0.07176]
[1739031507373,0.3608,95868.0,95860.0,0.19556365]
[1739031507976,0.0634,95867.0,95860.0,0.19556365]
[1739031508171,0.0634,95867.0,95846.0,0.3608]
[1739031508375,0.0634,95867.0,95851.0,0.2086658]
[1739031508674,0.2720339,95867.0,95851.0,0.2804258]
[1739031509176,0.3608,95858.0,95851.0,0.2086658]
[1739031509373,0.1237,95857.0,95851.0,0.2086658]
[1739031510084,0.1237,95857.0,95848.0,0.01254958]
[1739031511477,0.1257,95857.0,95848.0,0.01254958]
[1739031513081,0.13712294,95856.0,95848.0,0.01254958]
[1739031513476,0.13712294,95856.0,95848.0,0.00156481]
[1739031514277,0.13812294,95856.0,95848.0,0.00156481]
[1739031514482,0.2086802,95846.0,95842.0,4e-05]
[1739031514675,0.0595,95845.0,95842.0,4e-05]
[1739031514980,0.0595,95845.0,95835.0,0.9810609]
[1739031515172,0.0595,95845.0,95835.0,0.9805009]
[1739031515870,0.0605,95845.0,95835.0,0.9805009]
[1739031516067,0.0605,95845.0,95835.0,0.99168542]
[1739031516877,0.13712294,95844.0,95835.0,0.99168542]
[1739031518186,0.13712294,95844.0,95835.0,0.78298452]
[1739031518371,0.2086888,95842.0,95835.0,0.78298452]
[1739031518577,0.0623,95841.0,95835.0,0.78298452]
[1739031520682,0.1227718,95841.0,95835.0,0.78298452]
[1739031521286,0.0624718,95841.0,95838.0,0.2086952]
[1739031521587,0.0654718,95841.0,95838.0,0.2086952]
[1739031523278,0.005,95841.0,95838.0,0.2086952]
[1739031525594,0.005,95841.0,95839.0,0.2086923]
[1739031525783,0.57933145,95851.0,95835.0,0.78354452]
[1739031525784,0.05981755,95859.0,95840.0,0.3608]
[1739031526089,0.00060001,95860.0,95859.0,0.2086501]
[1739031526284,0.2085994,95883.0,95869.0,0.208627]
[1739031527684,0.2155994,95883.0,95869.0,0.208627]
[1739031527886,0.2225994,95883.0,95869.0,0.208627]
[1739031528289,0.2235994,95883.0,95870.0,0.2086242]
[1739031528587,0.5694082,95879.0,95870.0,0.2086242]
[1739031528787,0.3608,95879.0,95870.0,0.2086242]
[1739031528987,0.3608,95871.0,95870.0,0.2086242]
[1739031529497,0.3608,95871.0,95866.0,0.00015643]
[1739031530494,0.3608,95879.0,95861.0,0.01091073]
[1739031530695,0.3608,95879.0,95871.0,0.2086229]
[1739031531498,0.208613,95877.0,95871.0,0.2086229]
[1739031531884,0.208613,95877.0,95871.0,0.2096229]
[1739031532286,0.36736001,95879.0,95871.0,0.2096229]
[1739031532488,0.07665299,95878.0,95871.0,0.2096229]
[1739031532687,0.2086167,95875.0,95871.0,0.2096229]
[1739031533998,0.2126167,95875.0,95873.0,0.2086193]
[1739031535293,0.4136167,95875.0,95873.0,0.2086193]
[1739031535492,0.4176167,95875.0,95873.0,0.2086193]
[1739031536003,0.07665299,95874.0,95873.0,0.2086193]
[1739031536299,0.30665299,95874.0,95873.0,0.2086193]
[1739031537400,0.31065299,95874.0,95873.0,0.2086193]
[1739031537597,0.31065299,95874.0,95863.0,0.3608]
[1739031537893,0.31065299,95874.0,95862.0,0.2086422]
[1739031537894,0.67145299,95874.0,95862.0,0.2086422]
[1739031538105,0.2086333,95867.0,95862.0,0.2086422]
[1739031538287,0.0603,95866.0,95861.0,0.0618]
[1739031538494,0.2603,95866.0,95863.0,0.2086394]
[1739031538695,0.2603,95866.0,95864.0,0.2086384]
[1739031539691,0.2613,95866.0,95864.0,0.2086384]
[1739031542098,0.201,95866.0,95864.0,0.2086384]
[1739031544707,0.001,95866.0,95864.0,0.2086384]
[1739031544896,0.221,95866.0,95864.0,0.2086384]
[1739031548398,0.22,95866.0,95864.0,0.2086384]
[1739031548613,0.0636,95880.0,95865.0,0.3608]
[1739031548802,0.2736,95880.0,95876.0,0.2086112]
[1739031549108,0.2736,95880.0,95876.0,0.13682621]
[1739031550308,0.36136001,95882.0,95881.0,0.2086022]
[1739031550511,0.3608,95882.0,95881.0,0.2086022]
[1739031550707,0.00015643,95886.0,95874.0,0.3608]
[1739031551018,0.45968894,95885.0,95883.0,0.2085964]
[1739031551404,0.47968894,95885.0,95883.0,0.2085964]
[1739031551610,0.24968894,95885.0,95883.0,0.2085964]
[1739031551807,0.24968894,95885.0,95884.0,0.3608]
[1739031552012,0.24968894,95885.0,95884.0,0.4192]
[1739031552210,0.24968894,95885.0,95884.0,0.4826]
[1739031552715,0.00015643,95886.0,95885.0,0.2085935]
[1739031554607,0.28128968,95891.0,95884.0,0.49382462]
[1739031554813,0.28128968,95891.0,95890.0,0.2085827]
[1739031555007,0.28128968,95891.0,95890.0,0.2810627]
[1739031556618,0.00704,95891.0,95890.0,0.2810627]
[1739031557223,0.01404,95891.0,95890.0,0.2810627]
[1739031557421,0.01404,95891.0,95890.0,0.2085827]
[1739031558023,0.00704,95891.0,95890.0,0.2085827]
[1739031558327,0.01304,95891.0,95890.0,0.2095827]
[1739031562038,0.25304,95891.0,95890.0,0.001]
[1739031562229,0.61384,95891.0,95890.0,0.001]
[1739031562633,0.73554,95891.0,95890.0,0.001]
[1739031564334,0.37474,95891.0,95890.0,0.001]
[1739031573247,0.37474,95891.0,95890.0,0.0005469]
[1739031575651,0.38582266,95891.0,95890.0,0.0005469]
[1739031575943,0.38582266,95891.0,95890.0,0.00029866]
[1739031577450,0.74662266,95891.0,95890.0,0.00029866]
[1739031578241,0.80892266,95891.0,95890.0,0.00029866]
[1739031578741,0.44812266,95891.0,95890.0,0.00029866]
[1739031578940,0.43704,95891.0,95890.0,0.00029866]
[1739031579341,0.60974414,95891.0,95890.0,0.00029866]
[1739031581238,0.60974414,95891.0,95886.0,0.13711516]
[1739031581645,0.48804414,95891.0,95884.0,0.01122462]
[1739031581851,0.48804414,95891.0,95889.0,0.2085839]
[1739031582246,0.48204414,95891.0,95889.0,0.2085839]
[1739031582447,0.48904414,95891.0,95889.0,0.2085839]
[1739031582643,0.41974414,95891.0,95889.0,0.2085839]
[1739031582954,0.42674414,95891.0,95889.0,0.2085839]
[1739031584645,0.25404,95891.0,95889.0,0.2085839]
[1739031587453,0.01404,95891.0,95889.0,0.2085839]
[1739031587651,0.01404,95891.0,95890.0,0.3608]
[1739031589053,0.00704,95891.0,95890.0,0.3608]
[1739031589255,0.01404,95891.0,95890.0,0.3608]
[1739031589447,0.00704,95891.0,95890.0,0.3608]
[1739031589756,0.01404,95891.0,95890.0,0.3608]
[1739031589942,0.01404,95891.0,95890.0,0.28903673]
[1739031591749,0.01404,95891.0,95889.0,0.2085839]
[1739031592150,0.24404,95891.0,95889.0,0.2085839]
[1739031592345,0.01404,95891.0,95889.0,0.2085839]
[1739031592665,0.22404,95891.0,95889.0,0.2085839]
[1739031592960,0.01404,95891.0,95889.0,0.2095839]
[1739031593150,0.00704,95891.0,95889.0,0.2095839]
[1739031593353,0.01404,95891.0,95889.0,0.2105839]
[1739031593861,0.0766363,95890.0,95889.0,0.2105839]
[1739031595059,0.0826363,95890.0,95889.0,0.2095839]
[1739031595355,0.0886363,95890.0,95889.0,0.2095839]
[1739031597855,0.0886363,95890.0,95889.0,0.13781472]
[1739031598760,0.3286363,95890.0,95889.0,0.13781472]
[1739031598962,0.0886363,95890.0,95889.0,0.13781472]
[1739031601661,0.3186363,95890.0,95889.0,0.13781472]
[1739031601854,0.0886363,95890.0,95889.0,0.13781472]
[1739031603167,0.012,95890.0,95889.0,0.13781472]
[1739031606564,0.21900204,95894.0,95889.0,0.3618]
[1739031606871,0.08953871,95894.0,95893.0,0.2085761]
[1739031607967,0.10553871,95894.0,95893.0,0.2095761]
[1739031608469,0.08596212,95894.0,95893.0,0.2095761]
[1739031608769,0.06074221,95894.0,95893.0,0.2095761]
[1739031609269,0.05274221,95894.0,95893.0,0.2105761]
[1739031609669,0.05274221,95894.0,95893.0,0.34622104]
[1739031610182,0.008,95894.0,95893.0,0.34622104]
[1739031610469,0.00015643,95900.0,95899.0,0.2085631]
[1739031610669,0.00015643,95900.0,95899.0,0.5693631]
[1739031611065,0.00015643,95900.0,95899.0,0.6415631]
[1739031611771,0.00015643,95900.0,95899.0,0.2807231]
[1739031611971,0.00015643,95900.0,95899.0,0.2817231]